Cogmind - Beta 13 @@@ ROGUE MODE // 2024.04.07 @ 11:37:32 Player: Rocketboy Result: Destroyed by Y-45 Defender with Beam Rifle Performance ------------- Evolutions (1) 500 Regions Visited (3) 600 Robots Destroyed (54) 270 Value Destroyed (1046) 1046 Prototype IDs (2) 40 Alien Tech Used (0) 0 Bonus (132) 132 TOTAL SCORE: 2588 Bonus ------- High Alert Combat Kills 99 Follower Combat Kills 33 Cogmind --------- Core Integrity 0/400 Matter 300/300 Energy 160/160 System Corruption 0% Temperature Cool (9) Movement Walking (120) Location -9/Storage Parts ------- > --- POWER (1) -------- Light Nuclear Core > --- PROPULSION (4) --- Aluminum Leg Aluminum Leg > --- UTILITY (2) ------ Improved Heat Sink Hacking Suite > --- WEAPON (2) ------- Improved Assault Rifle Improved Assault Rifle > --- INVENTORY (5) ---- Light Ion Engine Flight Unit Weight Redist. System Sensor Array Katana Peak State ------------ > --- POWER ------------ Light Nuclear Core > --- PROPULSION ------- Aluminum Leg Aluminum Leg > --- UTILITY ---------- Improved Heat Sink Hacking Suite > --- WEAPON ----------- Improved Assault Rifle Improved Assault Rifle > --- INVENTORY -------- Light Ion Engine Flight Unit Weight Redist. System Sensor Array Katana [Rating: 17] Favorites ----------- Power Light Ion Engine Engine Light Ion Engine Power Core Light Nuclear Core Propulsion Aluminum Leg Leg Aluminum Leg Wheel Compact Wheel Hover Unit Improved Hover Unit Flight Unit Flight Unit Utility Signal Interpreter Device Improved Terrain Scanner Storage Small Storage Unit Processor Signal Interpreter Hackware Hacking Suite Weapon Light Assault Rifle Energy Gun EM Pulse Gun Energy Cannon Advanced Beam Cannon Ballistic Gun Light Assault Rifle Ballistic Cannon Light Cannon Launcher Rocket Launcher Slashing Weapon Mining Claw Build | -11 -10 -9 -9 ------- Run | Yrd Mat Mat Sto Slots Evolved 2 | . . 2 . Power . | . . . . Propulsion 2 | . . 2 . Utility . | . . . . Weapon . | . . . . Parts Attached 62 | 9 17 3 33 Power 9 | 2 2 . 5 Engine 8 | 2 2 . 4 Core 1 | . . . 1 Reactor . | . . . . Propulsion 17 | 2 5 2 8 Treads . | . . . . Leg 6 | 2 1 . 3 Wheel 1 | . . . 1 Hover 3 | . 2 . 1 Flight 7 | . 2 2 3 Utility 9 | 3 4 1 1 Device 4 | 2 1 . 1 Storage 3 | 1 2 . . Processor 1 | . 1 . . Hackware 1 | . . 1 . Protection . | . . . . Artifact . | . . . . Weapon 27 | 2 6 . 19 Energy Gun 1 | . 1 . . Energy Cannon 5 | . . . 5 Ballistic Gun 8 | 2 4 . 2 Ballistic Cannon 1 | . 1 . . Launcher 7 | . . . 7 Special Weapon . | . . . . Impact Weapon . | . . . . Slashing Weapon 5 | . . . 5 Piercing Weapon . | . . . . Special Melee Weapon . | . . . . Unidentified Prototypes 2 | . . . 2 Parts Lost 17 | . 1 . 16 Power 3 | . 1 . 2 Propulsion 9 | . . . 9 Utility 1 | . . . 1 Weapon 4 | . . . 4 Highest Loss Streak 7 | . 1 . 7 To Critical Strikes . | . . . . Average Slot Usage (%) 91 | . 99 100 82 Engine 9 | . 14 11 4 Core 1 | . . . 3 Leg 15 | . 22 . 8 Hover 2 | . 4 . 1 Flight 10 | . . 44 18 Device 4 | . 5 . 3 Storage 7 | . 14 . . Processor 7 | . 8 11 6 Hackware 5 | . . 11 11 Energy Cannon 2 | . . . 5 Ballistic Gun 17 | . 25 11 7 Ballistic Cannon 1 | . 2 11 . Launcher 2 | . . . 5 Slashing Weapon 1 | . . . 2 Naked Turns . | . . . . Heaviest Build 17 | 13 17 7 15 Greatest Support 20 | 20 20 16 20 Greatest Overweight (x) 3 | . 2 . 3 Average Overweight (x) . | . . . . Largest Inventory Capacity 10 | 8 10 8 5 Average Capacity 7 | 7 8 5 5 Most Carried 10 | 5 10 7 5 Average Carried 6 | 3 8 5 4 Final Capacity 8 | 8 8 5 5 Final Carried 8 | 4 8 5 5 Class Distribution -------------------- 60% | Mutant 18% | Scavenger-Mutant 16% | Sprinter 4% | Commander-Mutant Dominant Class ---------------- Mutant | -10/Materials Sprinter | -9/Materials Scavenger-Mutant | -9/Storage Resources | -11 -10 -9 -9 ----------- Run | Yrd Mat Mat Sto Matter Collected 1538 | 375 435 17 711 Remotely . | . . . . Salvage Created 1577 | 167 501 . 909 Parts 118 | 20 36 . 62 Haulers Intercepted 5 | . 2 . 3 Recyclers Shooed 8 | . 7 . 1 Parts Field Recycled . | . . . . Retrieved Matter . | . . . . Parts Self-Destructed . | . . . . Prevented . | . . . . Kills | -11 -10 -9 -9 ------- Run | Yrd Mat Mat Sto Combat Hostiles Destroyed 27 | . 7 . 20 Melee 4 | . . . 4 Guns 8 | . 7 . 1 Cannons 6 | . . . 6 AOE 9 | . . . 9 Classes Destroyed 12 | 3 6 . 3 Worker 4 | 2 2 . . Builder 2 | . 1 . 1 Tunneler 4 | 4 . . . Hauler 5 | . 2 . 3 Recycler 6 | 1 2 . 3 Operator 2 | . 1 . 1 Watcher 4 | . 3 . 1 Swarmer 8 | . 5 . 3 Grunt 11 | . 2 . 9 Duelist 1 | . . . 1 Protector 1 | . . . 1 Sentry 6 | . . . 6 Best Kill Streak 6 | 2 6 . 6 Combat Bots Only 4 | . 3 . 4 Max Kills in Single Turn 4 | 1 2 . 4 Gunslinging 1 | . 1 . . Exploded 2 | . . . 2 Melee 1 | . . . 1 Uniques/NPCs Destroyed . | . . . . Combat | -11 -10 -9 -9 -------- Run | Yrd Mat Mat Sto Hostile Shots Fired 163 | . 29 . 134 Missed 51 | . 12 . 39 Damage Taken 1566 | . 240 . 1326 Core 413 | . 11 . 402 Absorbed by Shields 12 | . . . 12 Regen/Repaired (Parts) 76 | . 25 . 51 Core Remaining (%) 97 | 100 95 . . Volleys Fired 149 | 24 72 13 40 Largest 2 | 2 2 2 2 Hottest 136 | 40 60 55 136 Shots Fired 285 | 48 143 26 68 Gun 198 | 48 131 13 6 Cannon 60 | . 12 13 35 Launcher 27 | . . . 27 Special . | . . . . Kinetic 218 | 48 138 26 6 Thermal 35 | . . . 35 Explosive 27 | . . . 27 Electromagnetic 5 | . 5 . . Robot Hit Streak 7 | 5 7 5 6 Robot Miss Streak 9 | 4 8 7 9 Penetration Max . | . . . . Secondary Targets 2 | . 2 . . Max Gunslinging Chain 1 | . 1 . . Shots Hit Robots 157 | 22 80 15 40 Core Hits 86 | 9 34 . 43 Critical Kills . | . . . . Critical Parts Destroyed 1 | . 1 . . Critical Strikes 2 | . 2 . . Destroy 1 | . 1 . . Blast 1 | . 1 . . Melee Attacks 14 | . . . 14 Impact . | . . . . Slashing 14 | . . . 14 Piercing . | . . . . Sneak Attacks . | . . . . Combat Hostiles . | . . . . Follow-up Attacks 1 | . . . 1 Damage Inflicted 2732 | 247 800 205 1480 Guns 1072 | 247 697 51 77 Cannons 679 | . 103 154 422 Explosions 819 | . . . 819 Melee 162 | . . . 162 Ramming . | . . . . Kinetic 1292 | 247 763 205 77 Thermal 422 | . . . 422 Explosive 819 | . . . 819 Electromagnetic 37 | . 37 . . Impact . | . . . . Slashing 162 | . . . 162 Piercing . | . . . . Highest Corruption 2 | . 2 . . Average Corruption 2 | . 2 . . Corruption Purged . | . . . . Corruption Blocked . | . . . . Effects 4 | . 4 . . Matter Fused 2 | . 2 . . Heat Flow Errors 1 | . 1 . . Weapon Failures 1 | . 1 . . Overload Shots . | . . . . Overflow Damage 28 | . . . 28 Projectiles . | . . . . Explosions 28 | . . . 28 Melee . | . . . . Knockbacks . | . . . . Impact . | . . . . Kinetic . | . . . . Secondary . | . . . . Self-Inflicted Damage 146 | . . . 146 Shots 4 | . . . 4 Rammed . | . . . . Targets Rammed . | . . . . Kicked . | . . . . Crushed . | . . . . Highest Temperature 672 | . 161 25 672 Average Temperature 109 | . 28 11 155 Received Heat Transfer 447 | . 48 . 399 Effects 11 | . . . 11 Shutdowns 1 | . . . 1 Energy Bleed 3 | . . . 3 Interference 1 | . . . 1 Short Circuit 2 | . . . 2 Damage (minor) 1 | . . . 1 Damage (major) 3 | . . . 3 Siege Activations . | . . . . Robots Corrupted . | . . . . Combat Hostiles . | . . . . Parts Fried . | . . . . Impact Corruptions . | . . . . Robots Melted . | . . . . Combat Hostiles . | . . . . Parts Melted . | . . . . Heat Transferred 700 | . . . 700 Parts Sabotaged . | . . . . Parts Stolen . | . . . . Parts Stripped . | . . . . Power Chain Reactions . | . . . . Alert | -11 -10 -9 -9 ------- Run | Yrd Mat Mat Sto Peak Influence 644 | 35 207 38 644 Initial 22 | . 22 8 15 Average 221 | 14 92 24 447 Maximum Alert Level 2 | . 1 . 2 Low Security (%) 61 | 100 93 100 8 Level 1 9 | . 6 . 17 Level 2 29 | . . . 74 Level 3 . | . . . . Level 4 . | . . . . Level 5 . | . . . . High Security . | . . . . Max Security . | . . . . Squads Dispatched 2 | . . . 2 Investigation . | . . . . Extermination . | . . . . Reinforcement 1 | . . . 1 Assault 1 | . . . 1 Garrison . | . . . . Intercept . | . . . . Searches Triggered . | . . . . Construction Impeded . | . . . . Haulers Reinforced . | . . . . Active Scanning Responses . | . . . . Cargo Convoy Interrupts . | . . . . Stealth | -11 -10 -9 -9 --------- Run | Yrd Mat Mat Sto Distress Signals 4 | . 3 . 1 Communications Jammed . | . . . . Distress Signals . | . . . . Times Spotted 45 | . 18 2 25 Peak Tracking Total 5 | . 4 3 5 Tactical Retreats 2 | . 1 . 1 Traps | -11 -10 -9 -9 ------- Run | Yrd Mat Mat Sto Traps Triggered 4 | . 2 . 2 Indirectly . | . . . . Trap Hack Attempts . | . . . . Triggered . | . . . . Disarmed . | . . . . Reprogrammed . | . . . . Reused . | . . . . Traps Extracted . | . . . . Installed . | . . . . Triggered . | . . . . Machines | -11 -10 -9 -9 ---------- Run | Yrd Mat Mat Sto Machines Disabled 4 | . . . 4 Max in Single Turn 1 | . . . 1 Machines Repaired . | . . . . Machines Dismantled . | . . . . Machines Sabotaged . | . . . . Overloaded Fab Kills . | . . . . Hacking | -11 -10 -9 -9 --------- Run | Yrd Mat Mat Sto Machines Accessed 15 | . 9 1 5 Terminals 10 | . 6 . 4 Fabricators . | . . . . Repair Stations 2 | . 1 . 1 Recycling Units 2 | . 2 . . Scanalyzers 1 | . . 1 . Garrison Access . | . . . . Total Hacks 53 | . 31 2 20 Successful 30 | . 16 2 12 Failed 23 | . 15 . 8 Catastrophic 4 | . 2 . 2 Database Lockouts . | . . . . Manual 37 | . 24 . 13 Terminals 35 | . 23 . 12 Fabricators . | . . . . Repair Stations 11 | . 3 . 8 Recycling Units 5 | . 5 . . Scanalyzers 2 | . . 2 . Garrison Access . | . . . . Terminal Hacks 9 | . 7 . 2 Part Schematic 5 | . 5 . . Open Door 1 | . . . 1 Terminal Index 1 | . 1 . . Alert Level 1 | . 1 . . Recall Investigation 1 | . . . 1 Fabricator Hacks . | . . . . Repair Station Hacks 9 | . 2 . 7 Scan Component 5 | . 1 . 4 Repair 4 | . 1 . 3 Recycling Unit Hacks 1 | . 1 . . Report Inventory 1 | . 1 . . Scanalyzer 2 | . . 2 . Insert Component 1 | . . 1 . Analyze 1 | . . 1 . Garrison Access Hacks . | . . . . Unauthorized Hacks 9 | . 6 . 3 Terminals 8 | . 5 . 3 Track 1 | . 1 . . Botnet 7 | . 4 . 3 Fabricators . | . . . . Repair Stations . | . . . . Recycling Units 1 | . 1 . . Reject 1 | . 1 . . Scanalyzers . | . . . . Garrison Access . | . . . . Data Cores Recovered 1 | . 1 . . Used . | . . . . Hacking Detections 14 | . 8 1 5 Full Trace Events . | . . . . Feedback Events . | . . . . Feedback Blocked . | . . . . Robot Schematics Acquired . | . . . . Robots Built . | . . . . Authchips . | . . . . Time . | . . . . Total Robot Build Rating . | . . . . Part Schematics Acquired 6 | . 5 1 . Parts Built . | . . . . Authchips . | . . . . Time . | . . . . Total Part Build Rating . | . . . . Parts Repaired 4 | . 1 . 3 Time 110 | . 26 . 84 Parts Recycled . | . . . . Recycled Matter . | . . . . Retrieved Matter . | . . . . Retrieved Components . | . . . . Parts Scanalyzed 1 | . . 1 . Part Schematics Acquired 1 | . . 1 . Parts Damaged . | . . . . Bothacking | -11 -10 -9 -9 ------------ Run | Yrd Mat Mat Sto Used RIF Installer . | . . . . Robots Hacked . | . . . . Non-combat . | . . . . Combat . | . . . . Robot Hacks Applied . | . . . . Relay Couplers Released . | . . . . Fabnet Peak Effective % . | . . . . Robots Rewired . | . . . . Allies Hacked . | . . . . Hacks Repelled . | . . . . Allies | -11 -10 -9 -9 -------- Run | Yrd Mat Mat Sto Total Allies 10 | . . . 10 Largest Group 10 | . . . 10 Highest-Rated Group 88 | . . . 88 Highest-Rated Ally 16 | . . . 16 Total Orders 2 | . . . 2 GUARD 2 | . . . 2 Ally Attacks 7 | . . . 7 Total Damage 61 | . . . 61 Kills 2 | . . . 2 Allies Corrupted . | . . . . Allies Melted . | . . . . Intel | -11 -10 -9 -9 ------- Run | Yrd Mat Mat Sto Robot Analysis Total . | . . . . Derelict Logs Recovered . | . . . . Drone Launches . | . . . . Drone Recoveries . | . . . . Exploration | -11 -10 -9 -9 ------------- Run | Yrd Mat Mat Sto Turns Passed 2037 | 211 951 72 803 Spaces Moved 1535 | 108 655 101 671 Core 18 | 7 . . 11 Treads . | . . . . Legs 784 | 101 457 . 226 Wheels 58 | . . . 58 Hover 185 | . 183 . 2 Flight 490 | . 15 101 374 Fastest Speed 31 | 50 56 31 31 Average Speed 85 | 115 102 31 71 Slowest Speed 200 | 120 190 31 200 Overloaded Moves . | . . . . Propulsion Burnouts . | . . . . Robots Hopped 1 | . . 1 . Cave-ins Triggered 1 | . . . 1 Exploration Rate (%) 35 | 7 83 11 41 Regions Visited 3 Branch Regions 1 Pre-discovered Areas 1 | . . . 1 Known Exits Taken 2 | . 1 1 . Unknown Exits Taken 1 | 1 . . . Scrap Searched . | . . . . Spaces Dug 3 | . . . 3 Terrain Destroyed 193 | . . . 193 Melee . | . . . . Projectile . | . . . . AOE 193 | . . . 193 Terrain Rammed . | . . . . Walls Destroyed . | . . . . Machines Disabled . | . . . . Actions | -11 -10 -9 -9 --------- Run | Yrd Mat Mat Sto Total 1964 | 148 805 116 895 Wait 117 | . 28 . 89 Move 1530 | 107 654 98 671 Hop 1 | . . 1 . Pick Up 28 | 5 15 . 8 Fast Attach 37 | 8 8 . 21 Attach 8 | . 2 2 4 Detach 2 | . 1 . 1 Swap 17 | 1 7 1 8 Drop 36 | 3 18 1 14 Fire 149 | 24 72 13 40 Melee 13 | . . . 13 Ram . | . . . . Kick . | . . . . Crush . | . . . . Escape Stasis 26 | . . . 26 Rewire . | . . . . Trap . | . . . . Miscellaneous . | . . . . Route ------- -11/Scrapyard -10/Materials (discovered 3 exits: *Mat / *Min x2) -9/Materials (discovered 2 exits: *Sto x2) -9/Storage History --------- Turn | Location | Event 8 | -11/Scrapyard | Discovered new exit (range 16) 212 | -11/Scrapyard | Entered Materials 310 | -10/Materials | Build established: Mutant 337 | -10/Materials | Repaired Aluminum Leg 398 | -10/Materials | Discovered new exit (range 7) 601 | -10/Materials | Discovered new exit (range 9) 621 | -10/Materials | Identified exit to Materials 960 | -10/Materials | Discovered new exit (range 5) 965 | -10/Materials | Identified exit to Mines 1163 | -10/Materials | Entered another Materials area 1163 | -9/Materials | Evolved 2 slots: Propulsion x2 1171 | -9/Materials | Discovered new exit (range 16) 1210 | -9/Materials | Discovered new exit (range 5) 1214 | -9/Materials | Identified exit to Storage 1235 | -9/Materials | Entered Storage 1368 | -9/Storage | Repaired Flight Unit 1407 | -9/Storage | Repaired Lgt. Ion Engine 1440 | -9/Storage | Repaired Imp. Ion Engine 1463 | -9/Storage | Learned location of Armory (-4) 1611 | -9/Storage | Lost 7 parts (1p4n2w) 1635 | -9/Storage | First assault squad dispatched 1704 | -9/Storage | Core integrity fell below 50% 1727 | -9/Storage | Core integrity fell below 20% 1741 | -9/Storage | Crushed by falling debris 1766 | -9/Storage | Lost 7 parts (1p4n1u1w) 1870 | -9/Storage | Build established: Scavenger-Mutant 1940 | -9/Storage | Assisted by bots powering up and referring to "LRC-V3" 2038 | -9/Storage | Destroyed by Y-45 Defender with Beam Rifle Last Messages --------------- Acquired Lgt. Nuclear Core. K-01 Serf collects debris. Acquired Imp. Heat Sink. Acquired 20 matter. I-25 Savior destroyed. Acquired 6 matter. K-01 Serf collects debris. Connecting with Repair Station... One of them suddenly speaks: "Hello LRC-V3. What is your command?" Terminal unresponsive. R-06 Scavenger collects Sml. Laser. R-06 Scavenger collects Heat Sink. U-05 Engineer lays Concrete. T-07 Excavator is excavating. Y-45 Defender destroyed. Acquired 6 matter. R-06 Scavenger destroyed. Acquired 6 matter. K-01 Serf destroyed. Map ----- +----------------------------------------------------+ | | | | | | | | | | | | | | | | | ?????????????????????????????????????????????????? | | ?????????????????????????????????????????????????? | | ?????????????????????????????????????????????????? | | ?????????????????????????????????????????????????? | | ?????????????????????????????????????????????????? | | ????????????????????????? ?????????????????#####?? | | ????????????????????????? ?????????????????# #?? | | ????????????????????????? ?????????????????# ### | | ????????????????????????? ??????????????##?# ##] | | ????????????????????????#+#?????????????# # ##] | | ???????????????????????? ?????????????# # ##] | | ???????????????????????? ?????????????# ##] | | ???????????????????????? ?????????????## # + | | ????????????????????????# #?##??????????## # # | | ????????????????????????# # #??????????#""" ### | | ??????????????????????+## # #??????????#"R #?? | | ??????????????????????? gY%=????????????#""" ##? | | ????????????????????????#@#?????????????#### ### | | ????????????????????????#g#??????????????# # ##" | | ????????????????????????#g#??????????????### ##" | | ???????????????????????##g########???????# # # | | ???????????????????????#*gg #?????##### # | | ???????????????????????# g ########## # | | ???????????????????????# # | | ???????????????????????# %+ * | | ???????????????????????#] / # % % | | ???????????????????????# ###########% | | ???????????????????????# !! #??????#### % # | | ???????????????????????# % #?????#### # | | ???????????????????????###########????## #% %### | | ??????????????????????????????????????#T + # [ | | ??????????????????????????????????????##"### # [ | | ??????????????????????????????????????#! ! # # [ | | ??????????????????????????????????????#! ! # # | | ??????????????????????????????????????#! !## + | | ??????????????????????????????????????#! !## # " | | ???????????????????????????????????######### # " | | ???????????????????????????????????# ? # # " | | ???????????????????????????????????# # # | | ?????????????????????????????#+#???# # ### | | ???????????????????????????## ???+ # ## | | ????????????????????????? ???# # ## | +----------------------------------------------------+ Best States ------------- Heat Dissipation 42 Energy Generation 14 Energy Capacity 265 Matter Stores 300 Matter Capacity 300 Sight Range 16 Robot Scan Range 14 Terrain Scan Range 16 Terrain Scan Density 10 Evasion (%) 63 Offensive Hacking 10 Item Schematics ----------------- Hover Unit | -10/Materials | Hacked Flight Unit | -10/Materials | Hacked Signal Interpreter | -10/Materials | Hacked Aluminum Leg | -10/Materials | Hacked Lgt. Armor Plating | -10/Materials | Hacked Weight Redist. System | -9/Materials | Scanalyzed Robot Schematics ------------------ None Fabricated ------------ Nothing Alien Tech Used ----------------- None Achievements -------------- None Challenges ------------ None Game ------ Seed BombPotentialNetwork Manual? 0 Play Time 00:36:02 Cumulative 19.6 hours Start 2024.04.07 @ 11:03:23 End 2024.04.07 @ 11:37:32 Sessions 1 Manual Loads 0 Difficulty Rogue Special Mode None Game No. 34 Rogue 34 Adventurer 0 Explorer 0 Win Type - Total 0 Types 0/0/0/0/0/0/0/0/0 Lore% 19 Gallery% 26 Achievement% 21 Wizard Run 0 Options --------- Layout 1 ASCII 0 Keyboard 0 Movement Mouse Keybinds 0 Fullscreen 1 Font 32/SmallcapsGlow Map View 50x35 Zoom Use 0% Tactical HUD 0 Map Filters NONE Filters NONE Steam 1 RUN: 7e299676-5dce-43f1-b0d1-a106777bc983